[Event "NJSK 2018 Jeugd C"]
[Site "Assen, Netherlands"]
[Date "2018.05.01"]
[Round "4.1"]
[White "Van Foreest, Machteld"]
[Black "Nguyen, Lucas"]
[Result "1-0"]
[TimeControl "40/90m+30sec/move"]
[WhiteElo "2132"]
[BlackElo "1919"]

1. e4 {[%clk 01:30:51]} {[%emt 00:00:09]} c5 {[%clk 01:30:55]} {[%emt
00:00:06]} 2. Nf3 {[%clk 01:31:16]} {[%emt 00:00:05]} Nc6 {[%clk 01:31:20]}
{[%emt 00:00:06]} 3. d4 {[%clk 01:31:41]} {[%emt 00:00:04]} cxd4 {[%clk
01:31:45]} {[%emt 00:00:05]} 4. Nxd4 {[%clk 01:32:00]} {[%emt 00:00:10]} g6
{[%clk 01:32:10]} {[%emt 00:00:05]} 5. c4 {[%clk 01:32:24]} {[%emt 00:00:09]}
Nf6 {[%clk 01:32:33]} {[%emt 00:00:17]} 6. Nc3 {[%clk 01:32:51]} {[%emt
00:00:07]} d6 {[%clk 01:32:58]} {[%emt 00:00:05]} 7. Be2 {[%clk 01:33:11]}
{[%emt 00:00:06]} Nxd4 {[%clk 01:33:21]} {[%emt 00:00:05]} 8. Qxd4 {[%clk
01:33:36]} {[%emt 00:00:02]} Bg7 {[%clk 01:33:45]} {[%emt 00:00:05]} 9. Be3
{[%clk 01:34:04]} {[%emt 00:00:02]} O-O {[%clk 01:34:03]} {[%emt 00:00:04]} 10.
Qd2 {[%clk 01:34:28]} {[%emt 00:00:06]} Ng4 {[%clk 01:34:23]} {[%emt 00:00:10]}
11. Bxg4 {[%clk 01:30:59]} {[%emt 00:04:00]} Bxg4 {[%clk 01:34:43]} {[%emt
00:00:11]} 12. O-O {[%clk 01:31:10]} {[%emt 00:00:18]} Rc8 {[%clk 01:31:41]}
{[%emt 00:03:32]} 13. b3 {[%clk 01:29:40]} {[%emt 00:02:00]} a6 {[%clk
01:30:45]} {[%emt 00:01:26]} 14. Rfc1 {[%clk 01:28:58]} {[%emt 00:01:12]} Re8
{[%clk 01:28:13]} {[%emt 00:03:02]} 15. Rab1 {[%clk 01:27:20]} {[%emt
00:02:07]} Be6 {[%clk 01:25:22]} {[%emt 00:03:21]} 16. Qd3 {[%clk 01:24:50]}
{[%emt 00:03:00]} Qa5 {[%clk 01:12:30]} {[%emt 00:13:22]} 17. Bd2 {[%clk
01:14:42]} {[%emt 00:10:37]} Qh5 {[%emt 00:04:11]} 18. Ne2 {[%clk 01:13:31]}
Qc5 {[%clk 00:57:21]} {[%emt 00:13:37]} 19. Nf4 {[%clk 01:06:42]} {[%emt
00:07:20]} Bd4 {[%clk 00:48:02]} {[%emt 00:09:49]} 20. Be1 {[%clk 00:53:39]}
{[%emt 00:13:34]} b5 {[%clk 00:42:58]} {[%emt 00:05:35]} 21. Nxe6 {[%clk
00:31:41]} {[%emt 00:22:27]} fxe6 {[%clk 00:43:21]} {[%emt 00:00:07]} 22. Rd1
{[%clk 00:28:11]} {[%emt 00:04:00]} Bg7 {[%clk 00:40:30]} {[%emt 00:03:21]} 23.
cxb5 {[%clk 00:27:56]} {[%emt 00:00:45]} axb5 {[%clk 00:40:45]} {[%emt
00:00:16]} 24. a4 {[%clk 00:22:06]} {[%emt 00:06:20]} b4 {[%clk 00:32:58]}
{[%emt 00:08:16]} 25. Qh3 {[%clk 00:17:54]} {[%emt 00:04:41]} e5 {[%clk
00:31:10]} {[%emt 00:02:18]} 26. Qd3 {[%clk 00:16:54]} {[%emt 00:01:29]} Ra8
{[%clk 00:15:48]} {[%emt 00:15:51]} 27. Rbc1 {[%clk 00:15:23]} {[%emt
00:02:03]} Qb6 {[%clk 00:15:46]} {[%emt 00:00:30]} 28. Rc4 {[%clk 00:15:17]}
{[%emt 00:00:38]} Reb8 {[%clk 00:14:30]} {[%emt 00:01:46]} 29. Rxb4 {[%clk
00:14:12]} {[%emt 00:01:36]} Qa7 {[%clk 00:13:12]} {[%emt 00:01:48]} 30. Rxb8+
{[%clk 00:13:48]} {[%emt 00:00:53]} Rxb8 {[%clk 00:13:38]} {[%emt 00:00:04]} 31.
a5 {[%clk 00:13:55]} {[%emt 00:00:23]} Qb7 {[%clk 00:11:54]} {[%emt 00:02:12]}
32. b4 {[%clk 00:14:16]} {[%emt 00:00:11]} Bh6 {[%clk 00:10:43]} {[%emt
00:01:41]} 33. a6 {[%clk 00:12:40]} {[%emt 00:02:05]} Qb6 {[%clk 00:11:08]}
{[%emt 00:00:05]} 34. Ra1 {[%clk 00:12:13]} {[%emt 00:00:56]} Kg7 {[%clk
00:10:09]} {[%emt 00:01:30]} 35. b5 {[%clk 00:11:52]} {[%emt 00:00:52]} Ra8
{[%clk 00:09:45]} {[%emt 00:00:54]} 36. Ba5 {[%clk 00:11:53]} {[%emt 00:00:29]}
Qc5 {[%clk 00:10:04]} {[%emt 00:00:11]} 37. b6 {[%clk 00:11:24]} {[%emt
00:00:59]} Rf8 {[%clk 00:09:51]} {[%emt 00:00:43]} 38. b7 {[%clk 00:03:39]}
{[%emt 00:08:16]} Rxf2 {[%clk 00:09:39]} {[%emt 00:00:42]} 39. Kh1 {[%clk
00:03:55]} {[%emt 00:00:13]} Rf8 {[%clk 00:09:18]} {[%emt 00:00:51]} 40. Qb1
{[%clk 00:03:42]} {[%emt 00:00:43]} Qd4 {[%clk 00:07:21]} {[%emt 00:02:27]} 41.
Bb6 {[%clk 00:03:58]} {[%emt 00:00:13]} 1-0

[Event "NJSK 2018 Jeugd C"]
[Site "Assen, Netherlands"]
[Date "2018.05.01"]
[Round "4.2"]
[White "Maters, Arthur"]
[Black "Elgersma, Onno"]
[Result "0-1"]
[TimeControl "40/90m+30sec/move"]
[WhiteElo "1895"]
[BlackElo "2060"]

1. d4 {[%clk 01:30:51]} {[%emt 00:00:09]} Nf6 {[%clk 01:30:16]} {[%emt
00:00:46]} 2. c4 {[%clk 01:31:15]} {[%emt 00:00:16]} e6 {[%clk 01:30:22]}
{[%emt 00:00:24]} 3. Nc3 {[%clk 01:31:39]} {[%emt 00:00:03]} Bb4 {[%clk
01:30:48]} 4. Qc2 {[%clk 01:32:02]} {[%emt 00:00:07]} O-O {[%clk 01:30:04]}
{[%emt 00:01:08]} 5. a3 {[%clk 01:32:26]} {[%emt 00:00:05]} Bxc3+ {[%clk
01:30:15]} {[%emt 00:00:19]} 6. Qxc3 {[%clk 01:32:49]} {[%emt 00:00:07]} b6
{[%clk 01:29:36]} {[%emt 00:01:09]} 7. Bg5 {[%clk 01:33:05]} {[%emt 00:00:14]}
Bb7 {[%clk 01:29:15]} {[%emt 00:00:51]} 8. e3 {[%clk 01:33:30]} {[%emt
00:00:05]} d6 {[%clk 01:25:01]} {[%emt 00:04:44]} 9. Ne2 {[%clk 01:33:45]}
{[%emt 00:00:15]} Nbd7 {[%clk 01:24:52]} {[%emt 00:00:39]} 10. Qc2 {[%clk
01:34:09]} {[%emt 00:00:05]} c5 {[%clk 01:23:54]} {[%emt 00:01:29]} 11. Rd1
{[%clk 01:34:32]} {[%emt 00:00:07]} cxd4 {[%clk 01:19:08]} {[%emt 00:05:16]} 12.
Rxd4 {[%clk 01:34:53]} {[%emt 00:00:08]} Qc7 {[%clk 01:13:11]} {[%emt
00:06:27]} 13. Nc3 {[%clk 01:35:12]} {[%emt 00:00:11]} a6 {[%clk 01:12:17]}
{[%emt 00:01:24]} 14. Be2 {[%clk 01:28:22]} {[%emt 00:07:19]} h6 {[%clk
01:02:26]} {[%emt 00:10:21]} 15. Bxf6 {[%clk 01:21:42]} {[%emt 00:07:11]} Nxf6
{[%clk 01:02:53]} {[%emt 00:00:03]} 16. O-O {[%clk 01:22:00]} {[%emt 00:00:11]}
d5 {[%clk 00:53:35]} {[%emt 00:09:48]} 17. cxd5 {[%clk 01:12:39]} {[%emt
00:09:51]} Nxd5 {[%clk 00:53:26]} {[%emt 00:00:40]} 18. Rc1 {[%clk 01:12:35]}
{[%emt 00:00:33]} Rac8 {[%clk 00:53:06]} {[%emt 00:00:50]} 19. Rc4 {[%clk
01:10:25]} {[%emt 00:02:40]} Qe5 {[%clk 00:50:01]} {[%emt 00:03:35]} 20. Nxd5
{[%clk 01:09:09]} {[%emt 00:01:47]} exd5 {[%clk 00:50:16]} {[%emt 00:00:15]} 21.
Rxc8 {[%clk 01:06:42]} {[%emt 00:02:57]} Rxc8 {[%clk 00:50:14]} {[%emt
00:00:32]} 22. Qd2 {[%clk 01:07:07]} {[%emt 00:00:06]} Rxc1+ {[%clk 00:49:05]}
{[%emt 00:01:39]} 23. Qxc1 {[%clk 01:07:31]} {[%emt 00:00:06]} d4 {[%clk
00:49:11]} {[%emt 00:00:23]} 24. Bf3 {[%clk 01:03:27]} {[%emt 00:04:33]} Bxf3
{[%clk 00:46:32]} {[%emt 00:03:09]} 25. gxf3 {[%clk 01:03:50]} {[%emt
00:00:07]} dxe3 {[%clk 00:42:12]} {[%emt 00:04:51]} 26. fxe3 {[%clk 01:04:06]}
{[%emt 00:00:13]} f5 {[%clk 00:37:32]} {[%emt 00:05:10]} 27. Kg2 {[%clk
01:02:05]} {[%emt 00:02:30]} Kh7 {[%clk 00:37:41]} {[%emt 00:00:22]} 28. Qd2
{[%clk 01:00:48]} {[%emt 00:01:46]} Kg6 {[%clk 00:33:35]} {[%emt 00:04:36]} 29.
Qc1 {[%clk 00:57:12]} {[%emt 00:04:06]} Kh5 {[%clk 00:29:34]} {[%emt 00:04:30]}
30. Qd2 {[%clk 00:55:17]} {[%emt 00:02:26]} g5 {[%clk 00:25:18]} {[%emt
00:04:47]} 31. h3 {[%clk 00:51:06]} {[%emt 00:04:41]} a5 {[%clk 00:20:03]}
{[%emt 00:05:44]} 32. b3 {[%clk 00:47:42]} {[%emt 00:03:54]} Qb5 {[%clk
00:17:48]} {[%emt 00:02:46]} 33. b4 {[%clk 00:43:18]} {[%emt 00:04:54]} axb4
{[%clk 00:18:01]} {[%emt 00:00:17]} 34. axb4 {[%clk 00:43:41]} {[%emt
00:00:07]} Qc4 {[%clk 00:18:01]} {[%emt 00:00:29]} 35. f4 {[%clk 00:37:53]}
{[%emt 00:06:18]} Qe4+ {[%clk 00:13:58]} {[%emt 00:04:33]} 36. Kg3 {[%clk
00:37:11]} {[%emt 00:01:11]} Qh1 {[%clk 00:13:36]} {[%emt 00:00:53]} 37. Qe2
{[%clk 00:34:15]} {[%emt 00:03:25]} Kg6 {[%clk 00:13:54]} {[%emt 00:00:13]} 38.
Qf2 {[%clk 00:34:37]} {[%emt 00:00:08]} Qb1 {[%clk 00:10:39]} {[%emt 00:03:45]}
39. Qd2 {[%clk 00:33:51]} {[%emt 00:01:17]} Qg1+ {[%clk 00:10:41]} {[%emt
00:00:27]} 40. Kf3 {[%clk 00:31:39]} {[%emt 00:02:42]} Qf1+ {[%clk 00:08:45]}
{[%emt 00:02:27]} 41. Kg3 {[%clk 00:32:01]} {[%emt 00:00:08]} Kh5 {[%clk
00:08:08]} {[%emt 00:01:06]} 42. Qf2 {[%clk 00:19:49]} {[%emt 00:12:42]} Qxf2+
{[%clk 00:07:35]} {[%emt 00:01:03]} 43. Kxf2 {[%clk 00:20:13]} {[%emt
00:00:07]} Kh4 {[%clk 00:07:28]} {[%emt 00:00:38]} 44. Kg2 {[%clk 00:20:37]}
{[%emt 00:00:05]} g4 {[%clk 00:07:45]} {[%emt 00:00:13]} 45. hxg4 {[%clk
00:20:20]} {[%emt 00:00:47]} Kxg4 {[%clk 00:08:07]} {[%emt 00:00:07]} 46. b5
{[%clk 00:19:43]} {[%emt 00:01:07]} h5 {[%clk 00:08:30]} {[%emt 00:00:06]} 47.
Kf2 {[%clk 00:20:04]} {[%emt 00:00:10]} h4 {[%clk 00:08:53]} {[%emt 00:00:08]}
48. Kg2 {[%clk 00:20:27]} {[%emt 00:00:07]} h3+ {[%clk 00:08:29]} {[%emt
00:00:54]} 49. Kh2 {[%clk 00:20:50]} {[%emt 00:00:06]} Kh4 {[%clk 00:07:50]}
{[%emt 00:01:09]} 50. e4 {[%clk 00:16:23]} {[%emt 00:04:59]} fxe4 {[%clk
00:08:03]} {[%emt 00:00:17]} 51. f5 {[%clk 00:16:48]} {[%emt 00:00:05]} e3
{[%clk 00:07:48]} {[%emt 00:00:45]} 52. f6 {[%clk 00:17:12]} {[%emt 00:00:06]}
e2 {[%clk 00:08:09]} {[%emt 00:00:09]} 53. f7 {[%clk 00:17:38]} {[%emt
00:00:04]} e1=Q {[%clk 00:08:31]} {[%emt 00:00:08]} 54. f8=Q {[%clk 00:18:00]}
{[%emt 00:00:08]} Qg3 {[%clk 00:08:52]} {[%emt 00:00:10]} 55. Kh1 {[%clk
00:18:24]} {[%emt 00:00:07]} Qg2 {[%clk 00:09:18]} {[%emt 00:00:03]} 0-1

[Event "NJSK 2018 Jeugd C"]
[Site "Assen, Netherlands"]
[Date "2018.05.01"]
[Round "4.3"]
[White "Pham, Khoi"]
[Black "Kutchoukov, Daniel"]
[Result "0-1"]
[TimeControl "40/90m+30sec/move"]
[WhiteElo "1983"]
[BlackElo "1902"]

1. e4 {[%clk 01:30:52]} {[%emt 00:00:07]} c6 {[%clk 01:30:57]} {[%emt
00:00:04]} 2. d4 {[%clk 01:31:10]} {[%emt 00:00:12]} d5 {[%clk 01:31:23]}
{[%emt 00:00:04]} 3. exd5 {[%clk 01:31:32]} {[%emt 00:00:08]} cxd5 {[%clk
01:31:49]} {[%emt 00:00:04]} 4. Bd3 {[%clk 01:31:50]} {[%emt 00:00:18]} Nc6
{[%clk 01:32:16]} {[%emt 00:00:09]} 5. c3 {[%clk 01:32:10]} {[%emt 00:00:14]}
Qc7 {[%clk 01:32:44]} {[%emt 00:00:02]} 6. h3 {[%clk 01:30:45]} {[%emt
00:01:39]} Nf6 {[%clk 01:33:05]} {[%emt 00:00:09]} 7. Nf3 {[%clk 01:31:01]}
{[%emt 00:00:13]} g6 {[%clk 01:33:29]} {[%emt 00:00:07]} 8. O-O {[%clk
01:14:01]} {[%emt 00:17:29]} Bf5 {[%clk 01:33:11]} {[%emt 00:00:49]} 9. Bxf5
{[%clk 01:12:35]} {[%emt 00:01:56]} gxf5 {[%clk 01:33:28]} {[%emt 00:00:14]} 10.
Be3 {[%clk 01:07:17]} {[%emt 00:05:48]} e6 {[%clk 01:32:25]} {[%emt 00:01:33]}
11. Ne5 {[%clk 01:05:53]} {[%emt 00:01:54]} Bd6 {[%clk 01:26:12]} {[%emt
00:06:43]} 12. f4 {[%clk 01:04:33]} {[%emt 00:01:49]} O-O-O {[%clk 01:19:54]}
{[%emt 00:06:48]} 13. a4 {[%clk 01:02:11]} {[%emt 00:02:52]} Ne4 {[%clk
01:16:04]} {[%emt 00:04:20]} 14. b4 {[%clk 00:56:47]} {[%emt 00:05:54]} a5
{[%clk 00:55:50]} {[%emt 00:20:44]} 15. Nxc6 {[%clk 00:50:37]} {[%emt
00:06:39]} Qxc6 {[%clk 00:50:27]} {[%emt 00:05:53]} 16. bxa5 {[%clk 00:49:59]}
{[%emt 00:01:09]} Kb8 {[%clk 00:43:29]} {[%emt 00:07:28]} 17. Qb3 {[%clk
00:39:24]} {[%emt 00:11:04]} Rc8 {[%clk 00:40:41]} {[%emt 00:03:18]} 18. Rc1
{[%clk 00:37:02]} {[%emt 00:02:52]} Qa6 {[%clk 00:32:23]} {[%emt 00:08:48]} 19.
Qb5 {[%clk 00:32:48]} {[%emt 00:04:44]} Bc7 {[%clk 00:28:09]} {[%emt 00:04:45]}
20. Na3 {[%clk 00:28:56]} {[%emt 00:04:22]} Nd6 {[%clk 00:21:53]} {[%emt
00:06:45]} 21. Qf1 {[%clk 00:17:23]} {[%emt 00:12:02]} Qxf1+ {[%clk 00:20:43]}
{[%emt 00:01:40]} 22. Kxf1 {[%clk 00:17:37]} {[%emt 00:00:15]} Bxa5 {[%clk
00:21:07]} {[%emt 00:00:07]} 23. Nb5 {[%clk 00:06:34]} {[%emt 00:11:33]} Ne4
{[%clk 00:08:50]} {[%emt 00:12:47]} 24. Ra3 {[%clk 00:05:47]} {[%emt 00:01:17]}
Rc4 {[%clk 00:08:29]} {[%emt 00:00:50]} 25. Bf2 {[%clk 00:02:12]} {[%emt
00:04:05]} Rhc8 {[%clk 00:08:01]} {[%emt 00:00:58]} 26. Be1 {[%clk 00:02:33]}
{[%emt 00:00:08]} Bb4 {[%clk 00:05:55]} {[%emt 00:02:36]} 27. Rb3 {[%clk
00:02:55]} {[%emt 00:00:08]} Bd6 {[%clk 00:04:42]} {[%emt 00:01:42]} 28. g3
{[%clk 00:00:59]} {[%emt 00:02:27]} Rxa4 {[%clk 00:04:10]} {[%emt 00:01:03]} 29.
Rcb1 {[%clk 00:01:12]} {[%emt 00:00:17]} Ra2 {[%clk 00:03:13]} {[%emt
00:01:27]} 30. Nxd6 {[%clk 00:01:16]} {[%emt 00:00:27]} Nxd6 {[%clk 00:03:38]}
{[%emt 00:00:04]} 31. Rb6 {[%clk 00:01:42]} {[%emt 00:00:05]} Kc7 {[%clk
00:03:20]} {[%emt 00:00:48]} 32. g4 {[%clk 00:01:21]} {[%emt 00:00:51]} fxg4
{[%clk 00:02:12]} {[%emt 00:01:38]} 33. hxg4 {[%clk 00:01:47]} {[%emt
00:00:04]} Rg8 {[%clk 00:02:33]} {[%emt 00:00:09]} 34. g5 {[%clk 00:02:14]}
{[%emt 00:00:03]} Rb8 {[%clk 00:01:38]} {[%emt 00:01:25]} 35. Bf2 {[%clk
00:01:21]} {[%emt 00:01:22]} Nc4 {[%clk 00:01:49]} {[%emt 00:00:20]} 36. f5
{[%clk 00:00:56]} {[%emt 00:00:55]} Rxf2+ {[%emt 00:01:37]} 0-1

[Event "NJSK 2018 Jeugd C"]
[Site "Assen, Netherlands"]
[Date "2018.05.01"]
[Round "4.4"]
[White "Bleeker, Kasper"]
[Black "Shakhverdian, William"]
[Result "0-1"]
[TimeControl "40/90m+30sec/move"]
[WhiteElo "1737"]
[BlackElo "1777"]

1. e4 {[%clk 01:30:31]} {[%emt 00:00:28]} c5 {[%clk 01:30:54]} {[%emt
00:00:07]} 2. Nf3 {[%clk 01:30:54]} {[%emt 00:00:06]} d6 {[%clk 01:31:20]}
{[%emt 00:00:04]} 3. Nc3 {[%clk 01:31:21]} {[%emt 00:00:12]} Nf6 {[%clk
01:31:46]} {[%emt 00:00:12]} 4. e5 {[%clk 01:31:23]} {[%emt 00:00:21]} dxe5
{[%clk 01:31:30]} {[%emt 00:00:36]} 5. Nxe5 {[%clk 01:31:45]} {[%emt 00:00:08]}
Nbd7 {[%clk 01:31:20]} {[%emt 00:00:41]} 6. Nxd7 {[%clk 01:30:05]} {[%emt
00:02:11]} Bxd7 {[%clk 01:31:27]} {[%emt 00:00:23]} 7. d4 {[%clk 01:29:15]}
{[%emt 00:01:20]} e6 {[%clk 01:30:19]} {[%emt 00:01:37]} 8. g3 {[%clk
01:29:28]} {[%emt 00:00:17]} Bc6 {[%clk 01:30:33]} {[%emt 00:00:16]} 9. Bb5
{[%clk 01:21:36]} {[%emt 00:08:23]} cxd4 {[%clk 01:29:17]} {[%emt 00:01:45]} 10.
Bxc6+ {[%clk 01:20:44]} {[%emt 00:01:23]} bxc6 {[%clk 03:59:53]} {[%emt
00:00:03]} 11. Ne2 {[%clk 01:20:11]} {[%emt 00:01:03]} c5 {[%clk 01:28:38]}
{[%emt 00:01:35]} 12. O-O {[%clk 01:18:49]} {[%emt 00:01:52]} Be7 {[%clk
01:28:57]} {[%emt 00:00:11]} 13. c3 {[%clk 01:17:01]} {[%emt 00:02:17]} e5
{[%clk 01:25:29]} {[%emt 00:03:59]} 14. cxd4 {[%clk 01:16:58]} {[%emt
00:00:33]} exd4 {[%clk 01:17:53]} {[%emt 00:08:06]} 15. b4 {[%clk 01:12:53]}
{[%emt 00:04:35]} d3 {[%clk 01:11:06]} {[%emt 00:07:18]} 16. Nf4 {[%clk
01:10:15]} {[%emt 00:03:08]} cxb4 {[%clk 01:07:59]} {[%emt 00:03:37]} 17. Qa4+
{[%clk 01:07:42]} {[%emt 00:03:03]} Qd7 {[%clk 01:07:46]} {[%emt 00:00:42]} 18.
Qxd7+ {[%clk 01:08:07]} {[%emt 00:00:06]} Kxd7 {[%clk 01:07:22]} {[%emt
00:00:54]} 19. Nxd3 {[%clk 01:07:56]} {[%emt 00:00:41]} Rhd8 {[%clk 01:06:18]}
{[%emt 00:01:34]} 20. Re1 {[%clk 01:06:28]} {[%emt 00:01:58]} Nd5 {[%clk
01:02:46]} {[%emt 00:04:02]} 21. Bb2 {[%clk 01:05:29]} {[%emt 00:01:30]} f6
{[%clk 01:02:51]} {[%emt 00:00:25]} 22. Rad1 {[%clk 01:04:43]} {[%emt
00:01:16]} Ke8 {[%clk 01:00:56]} {[%emt 00:02:24]} 23. Nc5 {[%clk 00:56:59]}
{[%emt 00:08:14]} Kf7 {[%clk 01:00:11]} {[%emt 00:01:14]} 24. Nb7 {[%clk
00:54:24]} {[%emt 00:03:06]} Rd7 {[%clk 00:57:34]} {[%emt 00:03:07]} 25. Na5
{[%clk 00:53:15]} {[%emt 00:01:40]} Rc8 {[%clk 00:56:12]} {[%emt 00:01:52]} 26.
Nb3 {[%clk 00:52:23]} {[%emt 00:01:21]} Nb6 {[%clk 00:55:11]} {[%emt 00:01:30]}
27. Rxd7 {[%clk 00:49:18]} {[%emt 00:03:36]} Nxd7 {[%clk 00:55:36]} {[%emt
00:00:04]} 28. Nd4 {[%clk 00:48:29]} {[%emt 00:01:19]} Ne5 {[%clk 00:55:16]}
{[%emt 00:00:50]} 29. Rc1 {[%clk 00:39:41]} {[%emt 00:09:18]} Rxc1+ {[%clk
00:54:24]} {[%emt 00:01:22]} 30. Bxc1 {[%clk 00:40:08]} {[%emt 00:00:03]} Bc5
{[%clk 00:54:14]} {[%emt 00:00:39]} 31. Nb3 {[%clk 00:40:04]} {[%emt 00:00:36]}
Bb6 {[%clk 00:54:13]} {[%emt 00:00:30]} 32. Bb2 {[%clk 00:30:54]} {[%emt
00:09:39]} Nd3 {[%clk 00:50:31]} {[%emt 00:04:10]} 33. Ba1 {[%clk 00:19:28]}
{[%emt 00:11:58]} Nxf2 {[%clk 00:48:11]} {[%emt 00:02:50]} 34. Bd4 {[%clk
00:18:30]} {[%emt 00:01:28]} Bxd4 {[%clk 00:46:51]} {[%emt 00:01:51]} 35. Nxd4
{[%clk 00:18:58]} {[%emt 00:00:02]} Nd3 {[%clk 00:47:10]} {[%emt 00:00:10]} 36.
Nc6 {[%clk 00:17:00]} {[%emt 00:02:29]} Ke6 {[%clk 00:40:08]} {[%emt 00:07:31]}
37. Nxa7 {[%clk 00:14:12]} {[%emt 00:03:20]} Nc1 {[%clk 00:40:24]} {[%emt
00:00:13]} 38. Kf2 {[%clk 00:14:16]} {[%emt 00:00:25]} Nxa2 {[%clk 00:40:50]}
{[%emt 00:00:05]} 39. Ke3 {[%clk 00:14:14]} {[%emt 00:00:32]} Kd5 {[%clk
00:39:44]} {[%emt 00:01:35]} 40. Kd3 {[%clk 00:13:59]} {[%emt 00:00:45]} Nc1+
{[%clk 00:34:30]} {[%emt 00:05:44]} 41. Kc2 {[%clk 00:06:42]} {[%emt 00:07:48]}
Ne2 {[%clk 00:34:48]} {[%emt 00:00:10]} 42. Kd3 {[%clk 00:06:52]} {[%emt
00:00:20]} Nd4 {[%clk 00:28:25]} {[%emt 00:06:51]} 43. Nc8 {[%clk 00:06:34]}
{[%emt 00:00:49]} Nf3 {[%clk 00:28:53]} {[%emt 00:00:03]} 44. Ne7+ {[%clk
00:05:25]} {[%emt 00:01:39]} Ke6 {[%clk 00:28:55]} {[%emt 00:00:26]} 45. Nc6
{[%clk 00:02:17]} {[%emt 00:03:39]} Ne5+ {[%clk 00:28:29]} {[%emt 00:00:56]} 46.
Nxe5 {[%clk 00:02:33]} {[%emt 00:00:14]} fxe5 {[%clk 00:27:39]} {[%emt
00:01:20]} 47. Kc4 {[%clk 00:02:55]} {[%emt 00:00:08]} Kf5 {[%clk 00:28:02]}
{[%emt 00:00:06]} 48. Kxb4 {[%clk 00:02:56]} {[%emt 00:00:30]} Ke4 {[%clk
00:28:29]} {[%emt 00:00:03]} 49. Kc3 {[%clk 00:02:33]} {[%emt 00:00:54]} Ke3
{[%clk 00:28:34]} {[%emt 00:00:25]} 50. g4 {[%clk 00:02:39]} {[%emt 00:00:24]}
e4 {[%clk 00:28:41]} {[%emt 00:00:22]} 51. h4 {[%clk 00:02:52]} {[%emt
00:00:18]} Kf2 {[%clk 00:29:04]} {[%emt 00:00:07]} 0-1